Cogmind - Beta 12 @@@ ROGUE MODE // 2023.05.28 @ 06:51:12 Player: youngster Result: Destroyed by D-53 Grenadier with Mini Grenade Launcher Performance ------------- Evolutions (0) 0 Regions Visited (4) 800 Robots Destroyed (34) 170 Value Destroyed (697) 697 Prototype IDs (18) 360 Alien Tech Used (0) 0 Bonus (81) 81 TOTAL SCORE: 2108 Bonus ------- Follower Combat Kills 81 Cogmind --------- Core Integrity 0/250 Matter 300/300 Energy 100/100 System Corruption 0% Temperature Cool (0) Movement Rolling (175) Ox5 Location -9/Mines Parts ------- > --- POWER (1) -------- (None) > --- PROPULSION (2) --- Light Treads Compact Wheel > --- UTILITY (2) ------ Huge Storage Unit Visual Processing Unit > --- WEAPON (2) ------- Autogun Autogun > --- INVENTORY (25) --- Light Ion Engine Reinforced Deuterium Engine Fission Core Light Treads Light Treads Light Treads Wheel Wheel High-capacity Matter Pod (200) Structural Scanner Experimental Sensor Array Phase Shifter EM Pulse Gun Improved Medium Laser Light Assault Rifle Autogun Autogun Rocket Launcher Datajack Peak State ------------ > --- POWER ------------ Ion Engine > --- PROPULSION ------- Light Treads Compact Wheel > --- UTILITY ---------- Huge Storage Unit Visual Processing Unit > --- WEAPON ----------- Autogun Autogun > --- INVENTORY -------- Light Ion Engine Reinforced Deuterium Engine Fission Core Light Treads Light Treads Light Treads Wheel Wheel High-capacity Matter Pod Structural Scanner Experimental Sensor Array Phase Shifter EM Pulse Gun Improved Medium Laser Autogun Autogun Datajack [Rating: 14] Favorites ----------- Power Ion Engine Engine Ion Engine Propulsion Light Treads Treads Light Treads Wheel Compact Wheel Utility Large Storage Unit Device Seismic Detector Storage Large Storage Unit Processor Visual Processing Unit Weapon EM Pulse Gun Energy Gun EM Pulse Gun Ballistic Gun Autogun Special Melee Weapon Datajack Build | -11 -10 -10 -10 -9 ------- Run | Jun Mat Min Exi Min Slots Evolved . | . . . . . Power . | . . . . . Propulsion . | . . . . . Utility . | . . . . . Weapon . | . . . . . Parts Attached 41 | 7 20 3 4 7 Power 1 | 1 . . . . Engine 1 | 1 . . . . Core . | . . . . . Reactor . | . . . . . Propulsion 8 | 2 2 . 1 3 Treads 6 | 2 2 . . 2 Leg . | . . . . . Wheel 2 | . . . 1 1 Hover . | . . . . . Flight . | . . . . . Utility 15 | 2 7 3 1 2 Device 8 | 1 4 2 . 1 Storage 6 | 1 3 1 1 . Processor 1 | . . . . 1 Hackware . | . . . . . Protection . | . . . . . Artifact . | . . . . . Weapon 17 | 2 11 . 2 2 Energy Gun 8 | . 7 . 1 . Energy Cannon . | . . . . . Ballistic Gun 8 | 2 4 . . 2 Ballistic Cannon . | . . . . . Launcher . | . . . . . Special Weapon . | . . . . . Impact Weapon . | . . . . . Slashing Weapon . | . . . . . Piercing Weapon . | . . . . . Special Melee Weapon 1 | . . . 1 . Unidentified Prototypes 1 | . 1 . . . Parts Lost 7 | . 1 1 . 5 Power 1 | . . . . 1 Propulsion 1 | . . . . 1 Utility 2 | . . 1 . 1 Weapon 3 | . 1 . . 2 Highest Loss Streak 3 | . 1 1 . 3 To Critical Strikes 1 | . . . . 1 Average Slot Usage (%) 99 | . 99 99 100 99 Engine 14 | . 14 14 14 14 Treads 25 | . 27 28 26 14 Wheel 2 | . . . 1 13 Device 12 | . 13 13 14 6 Storage 14 | . 14 14 14 14 Processor 1 | . . . . 7 Energy Gun 17 | . 17 28 21 . Ballistic Gun 9 | . 10 . . 27 Naked Turns . | . . . . . Heaviest Build 92 | 15 32 30 90 92 Greatest Support 40 | 40 40 40 40 16 Greatest Overweight (x) 5 | . . . 5 5 Average Overweight (x) 1 | . . . . 5 Largest Inventory Capacity 25 | 8 25 25 25 25 Average Capacity 15 | 7 12 15 15 25 Most Carried 19 | 4 15 15 17 19 Average Carried 13 | 2 10 14 15 16 Final Capacity 25 | 8 15 15 25 25 Final Carried 19 | 4 15 15 17 19 Class Distribution -------------------- 100% | Mutant Dominant Class ---------------- Mutant | -10/Materials Mutant | -10/Mines Mutant | -10/Exiles Mutant | -9/Mines Resources | -11 -10 -10 -10 -9 ----------- Run | Jun Mat Min Exi Min Matter Collected 1169 | 296 583 40 . 250 Remotely . | . . . . . Salvage Created 1233 | 112 797 108 . 216 Parts 62 | 10 38 8 . 6 Haulers Intercepted 2 | . 2 . . . Recyclers Shooed 4 | 1 3 . . . Parts Field Recycled . | . . . . . Retrieved Matter . | . . . . . Parts Self-Destructed . | . . . . . Prevented . | . . . . . Kills | -11 -10 -10 -10 -9 ------- Run | Jun Mat Min Exi Min Combat Hostiles Destroyed 26 | . 16 2 . 8 Guns 25 | . 16 1 . 8 AOE 1 | . . 1 . . Classes Destroyed 9 | 2 5 1 . 1 Worker 1 | . 1 . . . Builder 1 | . . 1 . . Tunneler 3 | 3 . . . . Hauler 2 | . 2 . . . Recycler 2 | 1 . . . 1 Watcher 3 | . 3 . . . Swarmer 7 | . 3 . . 4 Grunt 15 | . 13 2 . . Assembled 4 | . . . . 4 Best Kill Streak 4 | 4 3 2 . 4 Combat Bots Only 4 | . 3 1 . 4 Max Kills in Single Turn 2 | 1 2 2 . 1 Gunslinging 1 | . 1 . . . Exploded 1 | . . 1 . . Melee . | . . . . . Uniques/NPCs Destroyed . | . . . . . Combat | -11 -10 -10 -10 -9 -------- Run | Jun Mat Min Exi Min Damage Taken 1302 | . 598 56 . 648 Core 258 | . 123 22 . 113 Absorbed by Shields . | . . . . . Regen/Repaired (Parts) 97 | . 97 . . . Core Remaining (%) 100 | 100 . . . . Volleys Fired 99 | 9 54 8 . 28 Largest 2 | 2 2 2 . 2 Hottest 80 | 40 80 80 . 80 Shots Fired 198 | 18 108 16 . 56 Gun 198 | 18 108 16 . 56 Cannon . | . . . . . Launcher . | . . . . . Special . | . . . . . Kinetic 119 | 18 61 . . 40 Thermal 45 | . 45 . . . Explosive . | . . . . . Electromagnetic 34 | . 2 16 . 16 Robot Hit Streak 11 | 4 11 5 . 9 Robot Miss Streak 7 | 2 3 3 . 7 Penetration Max . | . . . . . Secondary Targets 3 | . 1 . . 2 Max Gunslinging Chain 1 | . 1 . . 1 Shots Hit Robots 136 | 10 78 10 4 34 Core Hits 55 | 5 33 4 . 13 Critical Kills 1 | . . . . 1 Critical Parts Destroyed . | . . . . . Critical Strikes 3 | . 2 . . 1 Burn 2 | . 2 . . . Destroy 1 | . . . . 1 Melee Attacks 4 | . . . 4 . Impact . | . . . . . Slashing . | . . . . . Piercing . | . . . . . Sneak Attacks 4 | . . . 4 . Combat Hostiles . | . . . . . Follow-up Attacks . | . . . . . Damage Inflicted 2037 | 119 1238 193 . 487 Guns 1911 | 119 1186 119 . 487 Cannons . | . . . . . Explosions 74 | . . 74 . . Melee . | . . . . . Ramming 52 | . 52 . . . Kinetic 1073 | 119 560 . . 394 Thermal 658 | . 584 74 . . Explosive . | . . . . . Electromagnetic 254 | . 42 119 . 93 Impact . | . . . . . Slashing . | . . . . . Piercing . | . . . . . Highest Corruption . | . . . . . Average Corruption . | . . . . . Corruption Purged . | . . . . . Corruption Blocked . | . . . . . Overload Shots . | . . . . . Overflow Damage . | . . . . . Projectiles . | . . . . . Explosions . | . . . . . Melee . | . . . . . Knockbacks . | . . . . . Impact . | . . . . . Kinetic . | . . . . . Secondary . | . . . . . Self-Inflicted Damage . | . . . . . Shots . | . . . . . Rammed 8 | . 8 . . . Targets Rammed 8 | . 8 . . . Kicked . | . . . . . Crushed . | . . . . . Highest Temperature 144 | . 144 121 . 24 Average Temperature 39 | . 46 65 . 7 Received Heat Transfer 282 | . 252 30 . . Siege Activations . | . . . . . Robots Corrupted . | . . . . . Combat Hostiles . | . . . . . Parts Fried 3 | . . 3 . . Impact Corruptions . | . . . . . Robots Melted . | . . . . . Combat Hostiles . | . . . . . Parts Melted 5 | . 5 . . . Heat Transferred 1556 | . 1406 150 . . Parts Sabotaged . | . . . . . Parts Stolen . | . . . . . Parts Stripped . | . . . . . Power Chain Reactions 1 | . . 1 . . Missiles Intercepted . | . . . . . Alert | -11 -10 -10 -10 -9 ------- Run | Jun Mat Min Exi Min Peak Influence 267 | 20 267 53 . 78 Initial 13 | . 13 . . . Average 60 | 8 96 12 . 44 Maximum Alert Level 1 | . 1 . . . Low Security (%) 91 | 100 83 100 . 100 Level 1 8 | . 16 . . . Level 2 . | . . . . . Level 3 . | . . . . . Level 4 . | . . . . . Level 5 . | . . . . . High Security . | . . . . . Max Security . | . . . . . Squads Dispatched 4 | . 4 . . . Investigation 2 | . 2 . . . Extermination . | . . . . . Reinforcement 2 | . 2 . . . Assault . | . . . . . Garrison . | . . . . . Intercept . | . . . . . Searches Triggered . | . . . . . Construction Impeded . | . . . . . Haulers Reinforced . | . . . . . Active Scanning Responses . | . . . . . Cargo Convoy Interrupts . | . . . . . Stealth | -11 -10 -10 -10 -9 --------- Run | Jun Mat Min Exi Min Distress Signals 4 | . 3 1 . . Communications Jammed . | . . . . . Distress Signals . | . . . . . Times Spotted 39 | . 22 2 . 15 Peak Tracking Total 5 | . 4 2 . 5 Tactical Retreats . | . . . . . Traps | -11 -10 -10 -10 -9 ------- Run | Jun Mat Min Exi Min Traps Triggered 2 | . 2 . . . Indirectly . | . . . . . Trap Hack Attempts . | . . . . . Triggered . | . . . . . Disarmed . | . . . . . Reprogrammed . | . . . . . Reused . | . . . . . Traps Extracted . | . . . . . Installed . | . . . . . Triggered . | . . . . . Exploded 2 | . . . . 2 Machines | -11 -10 -10 -10 -9 ---------- Run | Jun Mat Min Exi Min Machines Disabled . | . . . . . Max in Single Turn . | . . . . . Machines Repaired . | . . . . . Machines Sabotaged . | . . . . . Overloaded Fab Kills . | . . . . . Hacking | -11 -10 -10 -10 -9 --------- Run | Jun Mat Min Exi Min Machines Accessed 9 | . 8 . 1 . Terminals 6 | . 6 . . . Fabricators . | . . . . . Repair Stations 1 | . 1 . . . Recycling Units 1 | . 1 . . . Scanalyzers . | . . . . . Garrison Access . | . . . . . Total Hacks 27 | . 26 . 1 . Successful 18 | . 17 . 1 . Failed 8 | . 8 . . . Catastrophic 1 | . 1 . . . Database Lockouts 1 | . 1 . . . Manual 13 | . 13 . . . Terminals 23 | . 23 . . . Fabricators . | . . . . . Repair Stations 2 | . 2 . . . Recycling Units 1 | . 1 . . . Scanalyzers . | . . . . . Garrison Access . | . . . . . Terminal Hacks 9 | . 8 . 1 . Record 1 | . . . 1 . Robot Analysis 2 | . 2 . . . Prototype ID Bank 2 | . 2 . . . Locate Traps 3 | . 3 . . . Registered Components 1 | . 1 . . . Fabricator Hacks . | . . . . . Repair Station Hacks 2 | . 2 . . . Scan Component 1 | . 1 . . . Repair 1 | . 1 . . . Recycling Unit Hacks . | . . . . . Scanalyzer . | . . . . . Garrison Access Hacks . | . . . . . Unauthorized Hacks 7 | . 7 . . . Terminals 6 | . 6 . . . Track 1 | . 1 . . . Botnet 3 | . 3 . . . Operators 2 | . 2 . . . Fabricators . | . . . . . Repair Stations . | . . . . . Recycling Units 1 | . 1 . . . Tunnel 1 | . 1 . . . Scanalyzers . | . . . . . Garrison Access . | . . . . . Data Cores Recovered . | . . . . . Used . | . . . . . Hacking Detections 4 | . 4 . . . Full Trace Events . | . . . . . Feedback Events . | . . . . . Feedback Blocked . | . . . . . Robot Schematics Acquired . | . . . . . Robots Built . | . . . . . Authchips . | . . . . . Time . | . . . . . Total Robot Build Rating . | . . . . . Part Schematics Acquired . | . . . . . Parts Built . | . . . . . Authchips . | . . . . . Time . | . . . . . Total Part Build Rating . | . . . . . Parts Repaired 1 | . 1 . . . Time 13 | . 13 . . . Parts Recycled . | . . . . . Recycled Matter . | . . . . . Retrieved Matter . | . . . . . Retrieved Components . | . . . . . Parts Scanalyzed . | . . . . . Part Schematics Acquired . | . . . . . Parts Damaged . | . . . . . Bothacking | -11 -10 -10 -10 -9 ------------ Run | Jun Mat Min Exi Min Used RIF Installer . | . . . . . Robots Hacked 4 | . . . 4 . Non-combat 3 | . . . 3 . Combat 1 | . . . 1 . Robot Hacks Applied 4 | . . . 4 . parse_system 4 | . . . 4 . Relay Couplers Released . | . . . . . Fabnet Peak Effective % . | . . . . . Robots Rewired . | . . . . . Allies Hacked . | . . . . . Hacks Repelled . | . . . . . Allies | -11 -10 -10 -10 -9 -------- Run | Jun Mat Min Exi Min Total Allies 3 | . . 1 . 2 Largest Group 2 | . . 1 . 2 Highest-Rated Group 49 | . . 31 . 49 Highest-Rated Ally 31 | . . 31 . 31 Total Orders . | . . . . . Ally Attacks 14 | . . 6 . 8 Total Damage 187 | . . 125 . 62 Kills 5 | . . 2 . 3 Allies Corrupted . | . . . . . Allies Melted . | . . . . . Intel | -11 -10 -10 -10 -9 ------- Run | Jun Mat Min Exi Min Robot Analysis Total 2 | . 2 . . . Derelict Logs Recovered 3 | . . 2 . 1 Drone Launches . | . . . . . Drone Recoveries . | . . . . . Exploration | -11 -10 -10 -10 -9 ------------- Run | Jun Mat Min Exi Min Turns Passed 4526 | 127 1883 981 670 865 Spaces Moved 2279 | 55 941 444 407 432 Core 1 | 1 . . . . Treads 1817 | 54 941 444 378 . Legs . | . . . . . Wheels 461 | . . . 29 432 Hover . | . . . . . Flight . | . . . . . Fastest Speed 50 | 50 160 160 160 175 Average Speed 162 | 158 160 160 161 175 Slowest Speed 175 | 160 160 160 175 175 Overloaded Moves . | . . . . . Propulsion Burnouts . | . . . . . Robots Hopped . | . . . . . Cave-ins Triggered . | . . . . . Exploration Rate (%) 70 | 4 98 98 73 79 Regions Visited 4 Branch Regions 3 Pre-discovered Areas 4 | . 1 2 1 . Known Exits Taken . | . . . . . Unknown Exits Taken 4 | 1 1 1 1 . Scrap Searched 3 | . . 1 . 2 Spaces Dug . | . . . . . Terrain Destroyed 3 | . . 3 . . Melee . | . . . . . Projectile . | . . . . . AOE 3 | . . 3 . . Terrain Rammed . | . . . . . Walls Destroyed . | . . . . . Machines Disabled . | . . . . . Actions | -11 -10 -10 -10 -9 --------- Run | Jun Mat Min Exi Min Total 2889 | 74 1202 700 418 495 Wait 417 | . 162 240 . 15 Move 2275 | 54 940 443 406 432 Hop . | . . . . . Pick Up 28 | 4 10 3 3 8 Fast Attach 12 | 7 4 . . 1 Attach 8 | . 1 2 . 5 Detach 6 | . 3 1 . 2 Swap 21 | . 15 1 4 1 Drop 11 | . 5 2 1 3 Fire 99 | 9 54 8 . 28 Melee 4 | . . . 4 . Ram . | . . . . . Kick . | . . . . . Crush 8 | . 8 . . . Escape Stasis . | . . . . . Rewire . | . . . . . Trap . | . . . . . Miscellaneous . | . . . . . Route ------- -11/Junkyard -10/Materials (discovered 4 exits: [*Mat x3] / [*Min]) -10/Mines (discovered 3 exits: [*Mat x2] / *Exi) -10/Exiles (discovered 2 exits: [*Min x2]) -9/Mines (discovered 1 exit: [*Mat]) History --------- Turn | Location | Event 43 | -11/Junkyard | Discovered new exit (range 16) 128 | -11/Junkyard | Entered Materials 291 | -10/Materials | Central database locked down 315 | -10/Materials | Build established: Mutant 410 | -10/Materials | Discovered new exit (range 13) 910 | -10/Materials | Discovered new exit (range 8) 1132 | -10/Materials | Repaired Lgt. Treads 1502 | -10/Materials | Discovered new exit (range 10) 1865 | -10/Materials | Discovered new exit (range 16) 2011 | -10/Materials | Entered Mines 2014 | -10/Mines | Received a Mining Laser from a helpful Derelict 2121 | -10/Mines | Learned location of Storage (-8) 2283 | -10/Mines | Learned location of Zion (-6) 2307 | -10/Mines | Discovered new exit (range 13) 2469 | -10/Mines | Discovered new exit (range 11) 2664 | -10/Mines | Excavation squad dispatched 2664 | -10/Mines | A large section of the Mines collapsed 2894 | -10/Mines | Core integrity fell below 50% 2983 | -10/Mines | Deemed a non-threat by the Exiles lab entrance 2984 | -10/Mines | Discovered new exit (range 5) 2992 | -10/Mines | Entered Exiles 3013 | -10/Exiles | Discovered new exit (range 15) 3032 | -10/Exiles | Met 8R-AWN 3059 | -10/Exiles | Met EX-HEX 3117 | -10/Exiles | Met EX-BIN 3173 | -10/Exiles | Met EX-DEC 3251 | -10/Exiles | Visited The Gauntlet 3425 | -10/Exiles | Discovered new exit (range 10) 3662 | -10/Exiles | Entered Mines 3726 | -9/Mines | Lost 3 parts (1u2w) 3783 | -9/Mines | Found a damaged Exp. Sensor Array with a note attached 3787 | -9/Mines | Found Prototype Device 3796 | -9/Mines | Assembled infested the area 3801 | -9/Mines | Assisted by a Guerilla fighting off Assembled 3860 | -9/Mines | Core integrity fell below 20% 4289 | -9/Mines | Discovered new exit (range 7) 4527 | -9/Mines | Destroyed by D-53 Grenadier with Mini Grenade Launcher Last Messages --------------- 04076_ Found Spread Laser. 04076_ Found Field Recycling Unit. 04076_ Found 37 Matter. 04080_ Acquired Visual Processing Unit. 04081_ Acquired 10 matter. 04102_ R-06 Scavenger collects Lgt. Ion Engine. 04109_ A pair of derelicts emerge from the shadows: "We're, um, lost. You wouldn't happen to know the way out of here, would you?" 04243_ S-10 Pest destroyed. 04255_ Acquired 15 matter. 04258_ Acquired 1 matter. 04265_ Acquired Lgt. Assault Rifle. 04289_ Searching scrap... 04289_ Found Rocket Launcher. 04289_ Found 18 Matter. 04289_ Found 37 Matter. 04289_ EXIT=FOUND 04292_ Acquired Rocket Launcher. 04525_ Ion Engine destroyed. 04525_ QI-JSG(z) destroyed. Map ----- +----------------------------------------------------+ | ???????????????????????????????????????????????? | | ???????????????????????????????????????????????? | | ???????????????????????????????????????????????? | | ???????????????????????????????????????????????? | | ???????????????????????????????????????????????? | | ???????????????????????????????????????????????? | | ???????????????????????????????????????????????? | | ???????????????????????????????????????????????? | | ???????????????????????????????????????????????? | | ?????????????????????????????????????##????????? | | ?????????????????????????????????????? #???????? | | ?????????????????????????????????????? ###????? | | ??????????????????????????????????????? ##???? | | ??????????????????????????????????????? ##??? | | ???????????????????????????????????????? ##?? | | ???????????#####???????????????????????? #?? | | ############ ###??????????????????????# #?? | | ####### ###????????????????????# ##? | | ## ##????????????#####?## #? | | ## " ############## ### #? | | ##"%##### d #?? | | ## "##??### d t ## ##?? | | ## ##????## ###### ### #??? | | ## ##?????# = #???## ###?# #??? | | # # ????## %=g #????#####???# #??? | | # # ????# @ #?????????????# #??? | | # [!# ????# #????????????# #??? | | %[# ????# ## #????????????# #??? | | # # ????## ##### #????????????# #??? | | # ##?????# #???# ##????????????# #??? | | # # ?????## ##???# #####?????????# #??? | | # ##??????## #####????# ##????????# #??? | | # ???????####????????# k< ##???????# #??? | | # # ???????????????????## u #???????# #??? | | ## # ????????????????????## #???????# #??? | | *%* ##?????????????????????### #???????# #??? | | ==! ##????????????????####???##% #???????# #??? | | ######???????????????# ##??## %##???????# #??? | | ######???????????#### ##?# #????????# #??? | | ????????????????## #?# #????##### #??? | | ???????????????## #?## ##????# #??? | | ################ ##??# #?????# #####??? | | ####???# #?????# #??????? | | ############### ##??????# #?????# #??????? | | ##????????????## #???##### #?????# #??????? | | ##?????????????### #??## ## ###???# #??????? | | ###???????????????## #??# #???# #??????? | | ###???????????????## ##??## ##### #??????? | | ##???????????????## #????# #%= #??????? | | ###??????????????# ##??## ##* #######??????? | +----------------------------------------------------+ Best States ------------- Heat Dissipation 25 Energy Generation 10 Energy Capacity 250 Matter Stores 300 Matter Capacity 300 Sight Range 18 Terrain Scan Range 16 Terrain Scan Density 10 Evasion (%) 40 Recoil Reduction 2 Item Schematics ----------------- None Robot Schematics ------------------ None Fabricated ------------ Nothing Alien Tech Used ----------------- None Achievements -------------- None Challenges ------------ None Game ------ Seed DispersionFusionClaws Manual? 1 Play Time 00:21:44 Cumulative 410.2 hours Start 2023.05.27 @ 12:31:55 End 2023.05.28 @ 06:51:12 Sessions 2 Manual Loads 0 Difficulty Rogue Special Mode None Game No. 179 Rogue 179 Adventurer 0 Explorer 0 Win Type - Total 9 Types 6/0/1/1/0/0/0/1/0 Lore% 89 Gallery% 92 Achievement% 71 Wizard Run 0 Options --------- ASCII 1 Keyboard 1 Movement Vi Keybinds 0 Fullscreen 2 Font 18/Cog Map View 76x50 Tactical HUD 1 Map Filters NONE Filters NONE Steam 0 RUN: ca6a484f-45ce-4488-932c-fb2df49f6627